Cogmind - Beta 13 @@@ ROGUE MODE // 2024.04.06 @ 12:14:34 Player: Spuddz Result: Self-destructed Performance ------------- Evolutions (2) 1000 Regions Visited (5) 1000 Robots Destroyed (50) 250 Value Destroyed (1101) 1101 Prototype IDs (23) 460 Alien Tech Used (0) 0 Bonus (106) 106 TOTAL SCORE: 3917 Bonus ------- Follower Combat Kills 14 Aligned with FarCom 300 Friendly Fire -208 Cogmind --------- Core Integrity 389/550 Matter 95/300 Energy 150/150 System Corruption 0% Temperature Warm (170) Movement Flying (42) Location -8/Materials Parts ------- > --- POWER (1) -------- Light Angular Momentum Engine > --- PROPULSION (5) --- Flight Unit Flying Fortress v7 > --- UTILITY (3) ------ Large Storage Unit Supersonic Drone Bay (1/1) > --- WEAPON (2) ------- Mini Grenade Launcher > --- INVENTORY (15) --- Flight Unit Flight Unit EM Pulse Gun Grenade Launcher Mini Grenade Launcher Missile Launcher Improved Datajack Peak State ------------ > --- POWER ------------ Light Angular Momentum Engine > --- PROPULSION ------- Flight Unit Flying Fortress v7 > --- UTILITY ---------- Large Storage Unit Supersonic Drone Bay > --- WEAPON ----------- Mini Grenade Launcher Missile Launcher > --- INVENTORY -------- Flight Unit Flight Unit EM Pulse Gun Grenade Launcher Mini Grenade Launcher Missile Launcher Improved Datajack [Rating: 53] Favorites ----------- Power Ion Engine Engine Ion Engine Power Core Light Nuclear Core Propulsion Light Treads Treads Light Treads Leg Aluminum Leg Flight Unit Flight Unit Utility Large Storage Unit Device Supersonic Drone Bay Storage Large Storage Unit Protection Light Armor Plating Weapon Assault Rifle Energy Gun EM Pulse Gun Ballistic Gun Assault Rifle Launcher Grenade Launcher Special Melee Weapon Improved Datajack Build | -11 -10 -10 -10 -9 -8 ------- Run | Yrd Mat Min Exi Min Mat Slots Evolved 4 | . . . . . 4 Power . | . . . . . . Propulsion 3 | . . . . . 3 Utility 1 | . . . . . 1 Weapon . | . . . . . . Parts Attached 30 | 1 8 4 1 3 13 Power 6 | . 1 1 . . 4 Engine 4 | . . 1 . . 3 Core 2 | . 1 . . . 1 Reactor . | . . . . . . Propulsion 7 | . 2 . 1 . 4 Treads 3 | . 2 . 1 . . Leg . | . . . . . . Wheel . | . . . . . . Hover . | . . . . . . Flight 4 | . . . . . 4 Utility 3 | . 2 . . . 1 Device 1 | . . . . . 1 Storage 1 | . 1 . . . . Processor . | . . . . . . Hackware . | . . . . . . Protection 1 | . 1 . . . . Artifact . | . . . . . . Weapon 14 | 1 3 3 . 3 4 Energy Gun 1 | . . . . . 1 Energy Cannon . | . . . . . . Ballistic Gun 7 | 1 3 1 . 2 . Ballistic Cannon . | . . . . . . Launcher 5 | . . 2 . 1 2 Special Weapon . | . . . . . . Impact Weapon . | . . . . . . Slashing Weapon . | . . . . . . Piercing Weapon . | . . . . . . Special Melee Weapon 1 | . . . . . 1 Unidentified Prototypes . | . . . . . . Parts Lost 10 | . . 1 . 2 7 Power 5 | . . 1 . . 4 Propulsion . | . . . . . . Utility 1 | . . . . 1 . Weapon 4 | . . . . 1 3 Highest Loss Streak 3 | . . 1 . 1 3 To Critical Strikes . | . . . . . . Average Slot Usage (%) 85 | . 86 99 100 85 61 Engine 10 | . 8 6 14 14 8 Core 2 | . 5 7 . . . Treads 12 | . . 28 28 28 . Leg 9 | . 27 . . . . Flight 3 | . . . . . 17 Device 1 | . . . . . 8 Storage 12 | . 14 14 14 14 9 Protection 4 | . 1 14 14 . . Energy Gun 1 | . 3 . . . . Ballistic Gun 17 | . 24 18 14 5 17 Launcher 7 | . . 9 14 22 . Naked Turns . | . . . . . . Heaviest Build 34 | 12 32 33 33 30 34 Greatest Support 54 | 20 40 40 40 40 54 Greatest Overweight (x) 6 | . 1 . . . 6 Average Overweight (x) . | . . . . . . Largest Inventory Capacity 15 | 8 15 15 15 15 15 Average Capacity 14 | 8 14 15 15 15 15 Most Carried 15 | 6 15 15 15 15 15 Average Carried 12 | 6 11 14 14 14 9 Final Capacity 15 | 8 15 15 15 15 15 Final Carried 15 | 6 14 14 15 15 7 Class Distribution -------------------- 100% | Mutant Dominant Class ---------------- Mutant | -10/Materials Mutant | -10/Mines Mutant | -10/Exiles Mutant | -9/Mines Mutant | -8/Materials Resources | -11 -10 -10 -10 -9 -8 ----------- Run | Yrd Mat Min Exi Min Mat Matter Collected 1222 | 200 187 183 . 214 438 Remotely . | . . . . . . Salvage Created 1249 | . 360 242 . 62 585 Parts 82 | . 20 21 . 6 35 Haulers Intercepted 4 | . 2 . . . 2 Recyclers Shooed 3 | . 2 . . . 1 Parts Field Recycled . | . . . . . . Retrieved Matter . | . . . . . . Parts Self-Destructed . | . . . . . . Prevented . | . . . . . . Kills | -11 -10 -10 -10 -9 -8 ------- Run | Yrd Mat Min Exi Min Mat Combat Hostiles Destroyed 45 | . 7 10 . 17 11 Guns 20 | . 7 5 . 2 6 AOE 25 | . . 5 . 15 5 Classes Destroyed 11 | . 4 3 . 1 3 Worker 3 | . . . . . 3 Builder 4 | . . 2 . . 2 Hauler 4 | . 2 . . . 2 Recycler 1 | . . 1 . . . Operator 2 | . 2 . . . . Watcher 2 | . . . . . 2 Swarmer 14 | . 3 7 . 4 . Grunt 17 | . 4 3 . . 10 Hunter 1 | . . . . . 1 Zionite 1 | . . 1 . . . Assembled 13 | . . . . 13 . Thug 1 | . . 1 . . . Best Kill Streak 12 | . 3 5 . 12 12 Combat Bots Only 12 | . 3 3 . 12 5 Max Kills in Single Turn 5 | . 1 4 . 5 3 Gunslinging . | . . . . . . Exploded 5 | . . 2 . 5 2 Melee . | . . . . . . Uniques/NPCs Destroyed . | . . . . . . Combat | -11 -10 -10 -10 -9 -8 -------- Run | Yrd Mat Min Exi Min Mat Hostile Shots Fired 222 | . 43 33 . 26 120 Missed 68 | . 10 7 . 4 47 Damage Taken 2264 | . 355 316 . 386 1207 Core 330 | . 42 30 . 97 161 Absorbed by Shields . | . . . . . . Core Remaining (%) 66 | 100 . . . 32 . Volleys Fired 127 | . 34 16 . 15 62 Largest 2 | . 2 2 . 2 2 Hottest 66 | . 60 50 . 60 66 Shots Fired 247 | . 68 29 . 29 121 Gun 212 | . 68 21 . 13 110 Cannon . | . . . . . . Launcher 35 | . . 8 . 16 11 Special . | . . . . . . Kinetic 202 | . 61 21 . 13 107 Thermal . | . . . . . . Explosive 35 | . . 8 . 16 11 Electromagnetic 10 | . 7 . . . 3 Robot Hit Streak 11 | . 11 5 . 2 11 Robot Miss Streak 5 | . 4 3 . 5 5 Penetration Max . | . . . . . . Secondary Targets 1 | . . . . . 1 Max Gunslinging Chain 1 | . . . . . 1 Shots Hit Robots 150 | . 46 14 . 7 83 Core Hits 113 | . 20 20 . 31 42 Critical Kills 2 | . 1 . . . 1 Critical Parts Destroyed . | . . . . . . Critical Strikes 2 | . 1 . . . 1 Destroy 2 | . 1 . . . 1 Melee Attacks 1 | . . . . . 1 Impact . | . . . . . . Slashing . | . . . . . . Piercing . | . . . . . . Sneak Attacks . | . . . . . . Combat Hostiles . | . . . . . . Follow-up Attacks . | . . . . . . Damage Inflicted 4522 | . 627 941 . 849 2105 Guns 1710 | . 622 126 . 51 911 Cannons . | . . . . . . Explosions 2807 | . . 815 . 798 1194 Melee . | . . . . . . Ramming 5 | . 5 . . . . Kinetic 1581 | . 518 126 . 51 886 Thermal 296 | . . . . 33 263 Explosive 2511 | . . 815 . 765 931 Electromagnetic 129 | . 104 . . . 25 Impact . | . . . . . . Slashing . | . . . . . . Piercing . | . . . . . . Highest Corruption . | . . . . . . Average Corruption . | . . . . . . Corruption Purged . | . . . . . . Corruption Blocked . | . . . . . . Overload Shots . | . . . . . . Overflow Damage 208 | . . 79 . 20 109 Projectiles . | . . . . . . Explosions 208 | . . 79 . 20 109 Melee . | . . . . . . Knockbacks . | . . . . . . Impact . | . . . . . . Kinetic . | . . . . . . Secondary . | . . . . . . Self-Inflicted Damage 260 | . . 56 . 131 73 Shots 9 | . . 2 . 5 2 Rammed . | . . . . . . Targets Rammed 2 | . 2 . . . . Kicked 2 | . 2 . . . . Crushed . | . . . . . . Highest Temperature 170 | . 12 58 . 20 170 Average Temperature 35 | . 7 27 . 13 54 Received Heat Transfer 700 | . 147 63 . 40 450 Siege Activations . | . . . . . . Robots Corrupted . | . . . . . . Combat Hostiles . | . . . . . . Parts Fried 1 | . 1 . . . . Impact Corruptions . | . . . . . . Robots Melted . | . . . . . . Combat Hostiles . | . . . . . . Parts Melted . | . . . . . . Heat Transferred 250 | . . . . 50 200 Parts Sabotaged . | . . . . . . Parts Stolen . | . . . . . . Parts Stripped . | . . . . . . Power Chain Reactions . | . . . . . . Alert | -11 -10 -10 -10 -9 -8 ------- Run | Yrd Mat Min Exi Min Mat Peak Influence 400 | . 145 389 . 189 400 Initial 56 | . . 56 . . . Average 106 | . 67 277 . 148 42 Maximum Alert Level 2 | . . 1 . . 2 Low Security (%) 89 | 100 100 32 . 100 96 Level 1 10 | . . 67 . . 2 Level 2 . | . . . . . . Level 3 . | . . . . . . Level 4 . | . . . . . . Level 5 . | . . . . . . High Security . | . . . . . . Max Security . | . . . . . . Squads Dispatched 5 | . 2 . . . 3 Investigation 1 | . . . . . 1 Extermination . | . . . . . . Reinforcement 3 | . 2 . . . 1 Assault . | . . . . . . Garrison 1 | . . . . . 1 Intercept . | . . . . . . Searches Triggered . | . . . . . . Construction Impeded 1 | . . . . . 1 Haulers Reinforced . | . . . . . . Active Scanning Responses . | . . . . . . Cargo Convoy Interrupts . | . . . . . . Stealth | -11 -10 -10 -10 -9 -8 --------- Run | Yrd Mat Min Exi Min Mat Distress Signals 3 | . 3 . . . . Communications Jammed . | . . . . . . Distress Signals . | . . . . . . Times Spotted 59 | . 16 12 . 16 15 Peak Tracking Total 5 | . 4 3 . 5 5 Tactical Retreats 3 | . 3 . . . . Traps | -11 -10 -10 -10 -9 -8 ------- Run | Yrd Mat Min Exi Min Mat Traps Triggered 1 | . . . . . 1 Indirectly . | . . . . . . Trap Hack Attempts . | . . . . . . Triggered . | . . . . . . Disarmed . | . . . . . . Reprogrammed . | . . . . . . Reused . | . . . . . . Traps Extracted . | . . . . . . Installed . | . . . . . . Triggered . | . . . . . . Machines | -11 -10 -10 -10 -9 -8 ---------- Run | Yrd Mat Min Exi Min Mat Machines Disabled 5 | . . . . 2 3 Max in Single Turn 2 | . . . . 1 2 Machines Repaired . | . . . . . . Machines Dismantled . | . . . . . . Machines Sabotaged . | . . . . . . Overloaded Fab Kills . | . . . . . . Hacking | -11 -10 -10 -10 -9 -8 --------- Run | Yrd Mat Min Exi Min Mat Machines Accessed 2 | . 1 . 1 . . Terminals 1 | . 1 . . . . Fabricators . | . . . . . . Repair Stations . | . . . . . . Recycling Units . | . . . . . . Scanalyzers . | . . . . . . Garrison Access . | . . . . . . Total Hacks 2 | . 1 . 1 . . Successful 1 | . . . 1 . . Failed 1 | . 1 . . . . Catastrophic 1 | . 1 . . . . Database Lockouts . | . . . . . . Manual 2 | . 1 . 1 . . Terminals 1 | . 1 . . . . Fabricators . | . . . . . . Repair Stations . | . . . . . . Recycling Units . | . . . . . . Scanalyzers . | . . . . . . Garrison Access . | . . . . . . Terminal Hacks 1 | . . . 1 . . Derelict Proto ID Bank 1 | . . . 1 . . Fabricator Hacks . | . . . . . . Repair Station Hacks . | . . . . . . Recycling Unit Hacks . | . . . . . . Scanalyzer . | . . . . . . Garrison Access Hacks . | . . . . . . Unauthorized Hacks . | . . . . . . Terminals . | . . . . . . Fabricators . | . . . . . . Repair Stations . | . . . . . . Recycling Units . | . . . . . . Scanalyzers . | . . . . . . Garrison Access . | . . . . . . Data Cores Recovered . | . . . . . . Used . | . . . . . . Hacking Detections 1 | . 1 . . . . Full Trace Events . | . . . . . . Feedback Events . | . . . . . . Feedback Blocked . | . . . . . . Robot Schematics Acquired . | . . . . . . Robots Built . | . . . . . . Authchips . | . . . . . . Time . | . . . . . . Total Robot Build Rating . | . . . . . . Part Schematics Acquired . | . . . . . . Parts Built . | . . . . . . Authchips . | . . . . . . Time . | . . . . . . Total Part Build Rating . | . . . . . . Parts Repaired . | . . . . . . Time . | . . . . . . Parts Recycled . | . . . . . . Recycled Matter . | . . . . . . Retrieved Matter . | . . . . . . Retrieved Components . | . . . . . . Parts Scanalyzed . | . . . . . . Part Schematics Acquired . | . . . . . . Parts Damaged . | . . . . . . Bothacking | -11 -10 -10 -10 -9 -8 ------------ Run | Yrd Mat Min Exi Min Mat Used RIF Installer . | . . . . . . Robots Hacked 1 | . . . . . 1 Non-combat . | . . . . . . Combat 1 | . . . . . 1 Robot Hacks Applied 1 | . . . . . 1 parse_system 1 | . . . . . 1 Relay Couplers Released . | . . . . . . Fabnet Peak Effective % . | . . . . . . Robots Rewired . | . . . . . . Allies Hacked . | . . . . . . Hacks Repelled . | . . . . . . Allies | -11 -10 -10 -10 -9 -8 -------- Run | Yrd Mat Min Exi Min Mat Total Allies 2 | . . 2 . . . Largest Group 2 | . . 2 . . . Highest-Rated Group 55 | . . 55 . . . Highest-Rated Ally 31 | . . 31 . . . Total Orders 1 | . . . . . 1 EXPLORE 1 | . . . . . 1 Ally Attacks 5 | . . 5 . . . Total Damage 60 | . . 60 . . . Kills 2 | . . 2 . . . Allies Corrupted . | . . . . . . Allies Melted . | . . . . . . Intel | -11 -10 -10 -10 -9 -8 ------- Run | Yrd Mat Min Exi Min Mat Robot Analysis Total . | . . . . . . Derelict Logs Recovered . | . . . . . . Drone Launches 1 | . . . . . 1 Drone Recoveries 1 | . . . . . 1 Exploration | -11 -10 -10 -10 -9 -8 ------------- Run | Yrd Mat Min Exi Min Mat Turns Passed 3398 | 2 1173 413 652 475 683 Spaces Moved 1669 | 1 564 222 402 267 213 Core . | . . . . . . Treads 905 | . 14 222 402 267 . Legs 551 | 1 550 . . . . Wheels . | . . . . . . Hover . | . . . . . . Flight 213 | . . . . . 213 Fastest Speed 42 | 120 120 160 160 160 42 Average Speed 151 | 120 177 160 160 160 48 Slowest Speed 520 | 120 190 160 160 160 520 Overloaded Moves . | . . . . . . Propulsion Burnouts . | . . . . . . Robots Hopped 2 | . . . . . 2 Cave-ins Triggered . | . . . . . . Exploration Rate (%) 45 | 2 83 35 78 50 25 Regions Visited 5 Branch Regions 3 Pre-discovered Areas 1 | . . . . 1 . Known Exits Taken . | . . . . . . Unknown Exits Taken 5 | 1 1 1 1 1 . Scrap Searched 1 | . . 1 . . . Spaces Dug . | . . . . . . Terrain Destroyed 234 | . . 52 . 94 88 Melee . | . . . . . . Projectile . | . . . . . . AOE 234 | . . 52 . 94 88 Terrain Rammed . | . . . . . . Walls Destroyed . | . . . . . . Machines Disabled . | . . . . . . Actions | -11 -10 -10 -10 -9 -8 --------- Run | Yrd Mat Min Exi Min Mat Total 2283 | 1 666 250 413 285 668 Wait 410 | . 34 4 . . 372 Move 1660 | . 563 221 401 266 209 Hop 2 | . . . . . 2 Pick Up 28 | . 16 3 3 1 5 Fast Attach 1 | . 1 . . . . Attach 14 | . 2 1 . 1 10 Detach 1 | . . . . . 1 Swap 15 | 1 5 3 1 2 3 Drop 19 | . 9 2 5 . 3 Fire 127 | . 34 16 . 15 62 Melee 1 | . . . . . 1 Ram . | . . . . . . Kick 2 | . 2 . . . . Crush . | . . . . . . Escape Stasis . | . . . . . . Rewire 3 | . . . 3 . . Trap . | . . . . . . Miscellaneous . | . . . . . . Route ------- -11/Scrapyard -10/Materials (discovered 4 exits: [*Mat x3] / [*Min]) -10/Mines -10/Exiles -9/Mines -8/Materials History --------- Turn | Location | Event 3 | -11/Scrapyard | Discovered new exit (range 0) 3 | -11/Scrapyard | Entered Materials 302 | -10/Materials | Build established: Mutant 523 | -10/Materials | Discovered new exit (range 4) 782 | -10/Materials | Discovered new exit (range 16) 1074 | -10/Materials | Discovered new exit (range 15) 1112 | -10/Materials | Discovered new exit (range 16) 1176 | -10/Materials | Entered Mines 1581 | -10/Mines | Deemed a non-threat by the Exiles lab entrance 1581 | -10/Mines | Discovered new exit (range 5) 1589 | -10/Mines | Entered Exiles 1631 | -10/Exiles | Met 8R-AWN 1658 | -10/Exiles | Met EX-HEX 1703 | -10/Exiles | Met EX-BIN 1725 | -10/Exiles | Aligned with FarCom system 1727 | -10/Exiles | Given EX-Vault access code 1767 | -10/Exiles | Opened EX-Vault 1789 | -10/Exiles | Found Flying Fortress v7 1797 | -10/Exiles | Found Supersonic Drone Bay 1835 | -10/Exiles | Warned to stay clear of 0b10 Research branches 1878 | -10/Exiles | Met EX-DEC 2037 | -10/Exiles | Visited The Gauntlet 2219 | -10/Exiles | Discovered new exit (range 14) 2241 | -10/Exiles | Stole two prototypes: Flying Fortress v7, Supersonic Drone Bay 2241 | -10/Exiles | Entered Mines 2242 | -9/Mines | Assembled infested the area 2310 | -9/Mines | Core integrity fell below 50% 2346 | -9/Mines | Destroyed 12 combat bots 2690 | -9/Mines | Discovered new exit (range 14) 2711 | -9/Mines | Learned location of Storage (-9) 2716 | -9/Mines | Entered Materials 2716 | -8/Materials | Evolved 4 slots: Propulsion x3, Utility x1 3399 | -8/Materials | Self-destructed Last Messages --------------- 03380_ Destroyed Lgt. Deuterium Engine. 03380_ W-25 Informer destroyed. 03380_ Destroyed Welding Torch. 03380_ ALERT: Construction progress impeded, dispatching reinforcements to local area. 03381_ Assault Rifle destroyed. 03381_ U-05 Engineer lays Concrete. 03383_ G-47 Trooper destroyed. 03383_ K-01 Serf destroyed. 03383_ U-05 Engineer lays Concrete. 03384_ G-47 Trooper destroyed. 03384_ Destroyed Imp. Heat Sink. 03384_ Integration Channel disabled. 03385_ Y-45 Defender emerges from the garrison. 03385_ U-05 Engineer destroyed. 03391_ The unstable cave ceiling collapses. 03391_ G-47 Trooper destroyed. 03394_ Lgt. Nuclear Core destroyed. 03396_ Missile Launcher destroyed. 03397_ Destroyed Lgt. Nuclear Core. Map ----- +----------------------------------------------------+ | ?????????????????????????????????????????????????? | | ?????????????????????????????????????????????????? | | ?????????????????????????????????????????????????? | | ?????????????????????????????????????????????????? | | ?????????????????????????????????????????????????? | | ?????????????????????????????????????????????????? | | ?????????????????????????????????????????????????? | | ?????????????????????????????????????????????????? | | ?????????????????????????????????????????????????? | | ?????????????????????????????????????????????????? | | ?????????????????????????? ?????????????????????? | | ????????????????????? ???? ???????????????????? | | ???????????????????## ???? ????????????????? | | ???????????????????# ??? ??????????????? | | ???????????????????# ??????????????? | | ???????????????????# " "Y ???????????????? | | ???????????????????# g"G"% ????????????????? | | ???????????????????# " ! ????????????????? | | ???????????????????# ?????????????????? | | ???????????????????? ??????????????????# | | ????????????????????# ???????????????????# | | ????????????????????# ????????????????????# | | ????????????????????# ![ #????????????????????# | | ????????????????????# % #????????????????????# | | ????????????????????# = ############?????????# | | ????????????????????# @a == ?######## | | ????????????????????# =*%! | ## | | ????????????????????# !%| % [ !/[= | | ????????????????????### ##########* ###%[ | | ???????????????????############### ! #[! | | ???????????? + ] """ # | | ???????????????????############### ]]""" # | | ?????????????????????????????????#] =""" !# | | ?????????????????????????????????# # | | ?????????????????????????????????# """ ######## | | ?????????????????????????????????# """ ## | | ?????????????????????????????????# """ ## [ | | ?????????????????????????????????# ## | | ?????????????????????????????????#######???# | | ???????????????????????????????????????????# /!! | | ???????????????????????????????????????????# !! | | ???????????????????????????????????????????# !!! | | ???????????????????????????????????????????# | | ??????????????????????????????????????????######+# | | ??????????????????????????????????????????#]] = | | ??????????????????????????????????????????#]] | | ??????????????????????????????????????????#!! | | ??????????????????????????????????????????#!! | | ???????????????????????????????############!! | | ???????????????????????????????# % ##!! | +----------------------------------------------------+ Best States ------------- Heat Dissipation 31 Energy Generation 14 Energy Capacity 250 Matter Stores 300 Matter Capacity 300 Sight Range 16 Terrain Scan Density 10 Armor Coverage 150 Evasion (%) 61 Recoil Reduction 2 Item Schematics ----------------- None Robot Schematics ------------------ None Fabricated ------------ Nothing Alien Tech Used ----------------- None Achievements -------------- Backstab Challenges ------------ None Game ------ Seed ShadingWardroneLattice Manual? 0 Play Time 00:25:58 Cumulative 10.0 hours Start 2024.04.06 @ 11:49:42 End 2024.04.06 @ 12:14:34 Sessions 1 Manual Loads 0 Difficulty Rogue Special Mode None Game No. 28 Rogue 28 Adventurer 0 Explorer 0 Win Type - Total 0 Types 0/0/0/0/0/0/0/0/0 Lore% 14 Gallery% 15 Achievement% 17 Wizard Run 0 Options --------- Layout 1 ASCII 0 Keyboard 0 Movement Mouse Keybinds 0 Fullscreen 2 Font 32/Terminus Map View 50x35 Zoom Use 0% Tactical HUD 1 Map Filters NONE Filters NONE Steam 1 RUN: 09fa9146-6800-4e29-b6a2-482c02512b4b